Cogmind - Beta 13 @@@ ROGUE MODE // 2024.06.22 @ 16:33:01 Player: ZergFTW Result: Destroyed by WF-BCU(l) with Ripper Performance ------------- Evolutions (4) 2000 Regions Visited (12) 2400 Robots Destroyed (81) 405 Value Destroyed (1570) 1570 Prototype IDs (3) 60 Alien Tech Used (0) 0 Bonus (578) 578 TOTAL SCORE: 7013 Bonus ------- Aligned with FarCom 300 Met Imprinter 300 Friendly Fire -22 Cogmind --------- Core Integrity 0/850 Matter 234/300 Energy 100/100 System Corruption 6% Temperature Cool (0) Movement Walking (140) Location -6/Zion Parts ------- > --- POWER (2) -------- (None) > --- PROPULSION (6) --- Makeshift Leg > --- UTILITY (5) ------ Improved Signal Interpreter Hacking Suite > --- WEAPON (2) ------- (None) > --- INVENTORY (5) ---- Advanced ECM Suite Self-destruct Interrupter (50) Peak State ------------ > --- POWER ------------ Light Nuclear Core Light Nuclear Core > --- PROPULSION ------- VTOL Module Xenon Bombardment Thruster > --- UTILITY ---------- Advanced Visual Processing Unit Improved Signal Interpreter Hacking Suite Bomb Factory No. 2 > --- WEAPON ----------- Minigun Makeshift Hammer > --- INVENTORY -------- Heart of Steel Missile Launcher Self-destruct Interrupter [Rating: 43] Favorites ----------- Power Light Ion Engine Engine Light Ion Engine Power Core Light Nuclear Core Propulsion Flight Unit Leg Makeshift Leg Wheel Wheel Hover Unit Hover Unit Flight Unit Flight Unit Utility Structural Scanner Device Structural Scanner Storage Medium Storage Unit Processor Improved Signal Interpreter Hackware Hacking Suite Weapon Assault Rifle Energy Gun AWS/Thermal Ballistic Gun Assault Rifle Launcher Missile Launcher Impact Weapon Makeshift Hammer Slashing Weapon Mining Claw Special Melee Weapon Dirty Datajack Build | -11 -10 -10 -10 -9 -8 -7 -7 -7 -6 -6 -6 -6 ------- Run | Yrd Mat Min Exi Min Mat Fac Low Low Fac Low Low Zio Slots Evolved 8 | . . . . . 4 2 . . 2 . . . Power 1 | . . . . . . 1 . . . . . . Propulsion 4 | . . . . . 2 1 . . 1 . . . Utility 3 | . . . . . 2 . . . 1 . . . Weapon . | . . . . . . . . . . . . . Parts Attached 117 | 6 18 3 1 13 28 5 7 . 4 9 12 11 Power 11 | 1 4 . . 1 1 1 . . . 1 2 . Engine 9 | 1 4 . . 1 1 1 . . . 1 . . Core 2 | . . . . . . . . . . . 2 . Reactor . | . . . . . . . . . . . . . Propulsion 35 | 2 6 2 . 6 12 1 4 . 1 . . 1 Treads . | . . . . . . . . . . . . . Leg 1 | . . . . . . . . . . . . 1 Wheel 6 | 2 4 . . . . . . . . . . . Hover 8 | . 2 2 . 4 . . . . . . . . Flight 20 | . . . . 2 12 1 4 . 1 . . . Utility 24 | 1 2 1 . 2 5 2 1 . 2 . 3 5 Device 14 | . 1 1 . 2 2 1 . . . . 2 5 Storage 3 | 1 1 . . . 1 . . . . . . . Processor 5 | . . . . . 2 1 1 . 1 . . . Hackware 2 | . . . . . . . . . 1 . 1 . Protection . | . . . . . . . . . . . . . Artifact . | . . . . . . . . . . . . . Weapon 47 | 2 6 . 1 4 10 1 2 . 1 8 7 5 Energy Gun 3 | . 1 . 1 . . . 1 . . . . . Energy Cannon . | . . . . . . . . . . . . . Ballistic Gun 18 | 2 4 . . 3 2 1 . . . 2 2 2 Ballistic Cannon . | . . . . . . . . . . . . . Launcher 11 | . 1 . . 1 2 . 1 . . 2 3 1 Special Weapon . | . . . . . . . . . . . . . Impact Weapon 11 | . . . . . 4 . . . 1 2 2 2 Slashing Weapon 2 | . . . . . 2 . . . . . . . Piercing Weapon . | . . . . . . . . . . . . . Special Melee Weapon 2 | . . . . . . . . . . 2 . . Unidentified Prototypes 3 | . . . 1 . . . . . . . . 2 Corrupted Parts 2 | . . 2 . . . . . . . . . . System Corruption 10 | . . 10 . . . . . . . . . . Parts Lost 31 | . 3 . . 8 3 . 1 . 2 2 3 9 Power 5 | . 1 . . 1 . . . . 1 . 1 1 Propulsion 16 | . 2 . . 4 3 . 1 . 1 1 2 2 Utility 3 | . . . . . . . . . . . . 3 Weapon 7 | . . . . 3 . . . . . 1 . 3 Highest Loss Streak 5 | . 2 . . 5 2 . 1 . 2 2 3 4 To Critical Strikes . | . . . . . . . . . . . . . Average Slot Usage (%) 84 | . 93 100 91 83 91 98 99 100 91 80 67 69 Engine 8 | . 13 14 14 12 9 13 15 15 8 6 2 . Core 3 | . . . . . . . . . . . 2 11 Wheel 4 | . 18 . . . . . . . . . . . Hover 5 | . 8 28 28 12 . . . . . . . . Flight 14 | . . . . 11 35 38 37 38 36 27 17 12 Device 10 | . 9 14 14 14 9 11 15 15 13 11 5 11 Storage 7 | . 14 14 14 14 9 2 . . . . . . Processor 8 | . . . . . 15 15 15 15 18 13 13 12 Hackware 2 | . . . . . . . . . 1 6 12 6 Energy Gun 1 | . 1 . 6 2 . . 2 7 . . . . Ballistic Gun 11 | . 24 28 13 15 1 2 7 7 6 3 6 5 Impact Weapon 2 | . . . . . 7 7 2 . 6 5 4 3 Naked Turns . | . . . . . . . . . . . . . Heaviest Build 23 | 11 18 18 22 22 17 19 21 18 18 20 21 23 Greatest Support 22 | 20 20 12 12 12 16 20 22 22 22 22 18 20 Greatest Overweight (x) 5 | . 1 1 1 5 1 . . . . . 1 2 Average Overweight (x) . | . . 1 1 1 . . . . . . . 1 Largest Inventory Capacity 10 | 8 10 10 10 10 10 8 5 5 5 5 5 5 Average Capacity 7 | 6 8 10 10 10 9 6 5 5 5 5 5 5 Most Carried 10 | 5 10 10 10 10 10 7 5 5 5 5 5 5 Average Carried 6 | 2 6 10 9 9 8 5 4 4 3 4 4 4 Final Capacity 10 | 8 10 10 10 10 8 5 5 5 5 5 5 5 Final Carried 10 | 2 10 10 10 10 8 5 5 5 3 5 5 2 Class Distribution -------------------- 38% | Scavenger-Mutant 25% | Mutant 10% | Scavenger-Scout 10% | Scavenger-Sprinter 5% | Hacker-Mutant 4% | Infiltrator-Sprinter Dominant Class ---------------- Mutant | -10/Materials Mutant | -10/Mines Mutant | -10/Exiles Scavenger-Mutant | -9/Mines Scavenger-Scout | -8/Materials Scavenger-Scout | -7/Factory Scavenger-Sprinter | -7/Lower Caves Scavenger-Sprinter | -7/Lower Caves Scavenger-Ninja | -6/Factory Infiltrator-Sprinter | -6/Lower Caves Hacker-Mutant | -6/Lower Caves Scavenger-Mutant | -6/Zion Resources | -11 -10 -10 -10 -9 -8 -7 -7 -7 -6 -6 -6 -6 ----------- Run | Yrd Mat Min Exi Min Mat Fac Low Low Fac Low Low Zio Matter Collected 2339 | 212 702 8 . 342 364 . 68 116 . 252 209 66 Remotely . | . . . . . . . . . . . . . Salvage Created 1812 | . 916 . . 300 270 . 104 . . 115 86 21 Parts 129 | . 66 . . 21 11 . 9 . . 9 11 2 Haulers Intercepted 2 | . 1 . . . 1 . . . . . . . Recyclers Shooed 3 | . 3 . . . . . . . . . . . Parts Field Recycled . | . . . . . . . . . . . . . Retrieved Matter . | . . . . . . . . . . . . . Parts Self-Destructed 25 | . . . . . . . 8 . . 8 9 . Prevented . | . . . . . . . . . . . . . Kills | -11 -10 -10 -10 -9 -8 -7 -7 -7 -6 -6 -6 -6 ------- Run | Yrd Mat Min Exi Min Mat Fac Low Low Fac Low Low Zio Combat Hostiles Destroyed 56 | . 14 . . 16 3 . 6 . . 8 8 1 Melee 1 | . . . . . . . . . . 1 . . Guns 31 | . 13 . . 12 . . 2 . . 1 3 . AOE 23 | . 1 . . 4 3 . 4 . . 6 5 . Classes Destroyed 9 | . 8 . . . . . . . . . . 1 Worker 3 | . 3 . . . . . . . . . . . Builder 9 | . 3 . . . 6 . . . . . . . Hauler 2 | . 1 . . . 1 . . . . . . . Recycler 3 | . 2 . . . 1 . . . . . . . Operator 3 | . 3 . . . . . . . . . . . Watcher 4 | . 3 . . . 1 . . . . . . . Swarmer 40 | . 6 . . 10 3 . 6 . . 7 8 . Grunt 15 | . 8 . . 6 . . . . . 1 . . Zionite 1 | . . . . . . . . . . . . 1 Wasp 1 | . . . . . . . . . . . . 1 Best Kill Streak 6 | . 4 . . 6 3 . 4 . . 4 4 2 Combat Bots Only 6 | . 3 . . 6 3 . 4 . . 4 4 1 Max Kills in Single Turn 4 | . 2 . . 2 2 . 2 . . 2 4 1 Gunslinging 1 | . . . . 1 . . . . . . . . Exploded 4 | . 1 . . 1 2 . 2 . . 2 4 . Melee 1 | . . . . . . . . . . 1 . . Uniques/NPCs Destroyed . | . . . . . . . . . . . . . Combat | -11 -10 -10 -10 -9 -8 -7 -7 -7 -6 -6 -6 -6 -------- Run | Yrd Mat Min Exi Min Mat Fac Low Low Fac Low Low Zio Hostile Shots Fired 376 | . 59 . . 95 20 6 35 . 25 20 28 88 Missed 147 | . 13 . . 31 4 4 21 . 15 10 14 35 Damage Taken 3421 | . 542 1 . 638 208 11 201 . 46 218 241 1315 Core 1216 | . 111 . . 124 63 . 68 . . 61 75 714 Absorbed by Shields . | . . . . . . . . . . . . . Regen/Repaired (Parts) 88 | . . . . . 88 . . . . . . . Core Remaining (%) 71 | 100 . . . 6 88 . . 90 . . . . Volleys Fired 172 | . 110 . . 29 2 . 8 . . 7 11 5 Largest 2 | . 2 . . 2 2 . 2 . . 2 2 1 Hottest 70 | . 60 . . 50 56 . 70 . . 68 61 36 Shots Fired 331 | . 210 . . 65 4 . 16 . . 12 19 5 Gun 305 | . 209 . . 59 2 . 13 . . 6 14 2 Cannon . | . . . . . . . . . . . . . Launcher 26 | . 1 . . 6 2 . 3 . . 6 5 3 Special . | . . . . . . . . . . . . . Kinetic 266 | . 194 . . 40 2 . 8 . . 6 14 2 Thermal 19 | . . . . 19 . . . . . . . . Explosive 26 | . 1 . . 6 2 . 3 . . 6 5 3 Electromagnetic 20 | . 15 . . . . . 5 . . . . . Robot Hit Streak 12 | . 12 . . 10 . . 3 . . 2 2 2 Robot Miss Streak 6 | . 4 . . 5 . . 6 . . 2 4 . Penetration Max . | . . . . . . . . . . . . . Secondary Targets 3 | . . . . 1 . . 2 . . . . . Max Gunslinging Chain 1 | . . . . 1 . . 1 . . . . . Autonomous 19 | . . . . 19 . . . . . . . . Shots Hit Robots 175 | . 108 . . 30 11 . 3 . . 11 9 3 Core Hits 114 | . 50 . . 19 6 . 9 . . 14 13 3 Critical Kills 2 | . 1 . . . 1 . . . . . . . Critical Parts Destroyed 3 | . . . . 1 2 . . . . . . . Critical Strikes 6 | . 2 . . 1 3 . . . . . . . Destroy 2 | . 1 . . 1 . . . . . . . . Corrupt 1 | . 1 . . . . . . . . . . . Smash 3 | . . . . . 3 . . . . . . . Melee Attacks 94 | . . . . . 50 . . . 7 9 . 28 Impact 82 | . . . . . 43 . . . 7 4 . 28 Slashing 7 | . . . . . 7 . . . . . . . Piercing 5 | . . . . . . . . . . 5 . . Sneak Attacks 16 | . . . . . 8 . . . . 8 . . Combat Hostiles 8 | . . . . . . . . . . 8 . . Follow-up Attacks . | . . . . . . . . . . . . . Damage Inflicted 5097 | . 1275 2 . 967 765 . 299 . . 890 632 267 Guns 2009 | . 1216 . . 559 . . 73 . . 35 108 18 Cannons . | . . . . . . . . . . . . . Explosions 2124 | . 59 . . 408 110 . 226 . . 608 524 189 Melee 957 | . . . . . 655 . . . . 247 . 55 Ramming 7 | . . 2 . . . . . . . . . 5 Kinetic 1594 | . 1117 . . 285 . . 31 . . 35 108 18 Thermal 274 | . . . . 274 . . . . . . . . Explosive 2124 | . 59 . . 408 110 . 226 . . 608 524 189 Electromagnetic 141 | . 99 . . . . . 42 . . . . . Impact 932 | . . . . . 655 . . . . 222 . 55 Slashing . | . . . . . . . . . . . . . Piercing 25 | . . . . . . . . . . 25 . . Highest Corruption 11 | . 1 11 11 11 1 . . . . . . 6 Average Corruption 4 | . 1 1 11 11 1 . . . . . . 2 Corruption Purged . | . . . . . . . . . . . . . Corruption Blocked . | . . . . . . . . . . . . . Effects 34 | . 4 . 11 17 . . . . . . . 2 Message Errors 9 | . 1 . 1 7 . . . . . . . . Matter Fused 8 | . 1 . 2 5 . . . . . . . . Heat Flow Errors 9 | . . . 5 2 . . . . . . . 2 Energy Discharges 3 | . . . 2 1 . . . . . . . . Parts Rejected 1 | . . . . 1 . . . . . . . . Data Loss (major) 1 | . . . . 1 . . . . . . . . Misfires 1 | . 1 . . . . . . . . . . . Alerts 2 | . 1 . 1 . . . . . . . . . Overload Shots . | . . . . . . . . . . . . . Overflow Damage 416 | . . . . . 268 . 3 . . 35 43 67 Projectiles . | . . . . . . . . . . . . . Explosions 118 | . . . . . . . 3 . . 35 43 37 Melee 298 | . . . . . 268 . . . . . . 30 Knockbacks 5 | . . . . . 3 . . . . 1 . 1 Impact 5 | . . . . . 3 . . . . 1 . 1 Kinetic . | . . . . . . . . . . . . . Secondary . | . . . . . . . . . . . . . Self-Inflicted Damage 299 | . 35 1 . . . . . . . 64 34 165 Shots 6 | . 1 . . . . . . . . 1 1 3 Rammed 1 | . . 1 . . . . . . . . . . Targets Rammed 4 | . . 1 . . . . . . . . . 3 Kicked 3 | . . . . . . . . . . . . 3 Crushed . | . . . . . . . . . . . . . Highest Temperature 282 | . 48 . 282 254 13 10 246 63 2 13 . 186 Average Temperature 66 | . 16 . 92 86 13 4 97 26 2 5 . 98 Received Heat Transfer 663 | . 264 . . 171 36 . 30 . . 36 . 126 Effects 1 | . . . . 1 . . . . . . . . Interference 1 | . . . . 1 . . . . . . . . Siege Activations . | . . . . . . . . . . . . . Robots Corrupted . | . . . . . . . . . . . . . Combat Hostiles . | . . . . . . . . . . . . . Parts Fried 11 | . . . . . 11 . . . . . . . Impact Corruptions 13 | . . . . . 12 . . . . . . 1 Robots Melted . | . . . . . . . . . . . . . Combat Hostiles . | . . . . . . . . . . . . . Parts Melted . | . . . . . . . . . . . . . Heat Transferred 333 | . . . . 333 . . . . . . . . Parts Sabotaged . | . . . . . . . . . . . . . Parts Stolen . | . . . . . . . . . . . . . Parts Stripped . | . . . . . . . . . . . . . Power Chain Reactions . | . . . . . . . . . . . . . Alert | -11 -10 -10 -10 -9 -8 -7 -7 -7 -6 -6 -6 -6 ------- Run | Yrd Mat Min Exi Min Mat Fac Low Low Fac Low Low Zio Peak Influence 334 | . 319 80 . 334 262 34 . . 126 . . . Initial 108 | . . 80 . . 52 14 . . 108 . . . Average 133 | . 113 80 . 232 146 29 . . 111 . . . Maximum Alert Level 1 | . 1 . . 1 1 . . . . . . . Low Security (%) 62 | 100 64 100 . 32 58 100 . . 100 . . . Level 1 37 | . 35 . . 67 41 . . . . . . . Level 2 . | . . . . . . . . . . . . . Level 3 . | . . . . . . . . . . . . . Level 4 . | . . . . . . . . . . . . . Level 5 . | . . . . . . . . . . . . . High Security . | . . . . . . . . . . . . . Max Security . | . . . . . . . . . . . . . Squads Dispatched 8 | . 3 . . . 4 1 . . . . . . Investigation 3 | . 1 . . . 1 1 . . . . . . Extermination . | . . . . . . . . . . . . . Reinforcement 5 | . 2 . . . 3 . . . . . . . Assault . | . . . . . . . . . . . . . Garrison . | . . . . . . . . . . . . . Intercept . | . . . . . . . . . . . . . Searches Triggered . | . . . . . . . . . . . . . Construction Impeded 2 | . . . . . 2 . . . . . . . Haulers Reinforced . | . . . . . . . . . . . . . Active Scanning Responses . | . . . . . . . . . . . . . Cargo Convoy Interrupts . | . . . . . . . . . . . . . Stealth | -11 -10 -10 -10 -9 -8 -7 -7 -7 -6 -6 -6 -6 --------- Run | Yrd Mat Min Exi Min Mat Fac Low Low Fac Low Low Zio Distress Signals 2 | . 1 . . . 1 . . . . . . . Communications Jammed . | . . . . . . . . . . . . . Distress Signals . | . . . . . . . . . . . . . Times Spotted 126 | . 29 . . 17 13 1 12 . 1 22 8 23 Peak Tracking Total 21 | . 4 . . 4 6 1 7 . 1 7 4 21 Tactical Retreats 20 | . 2 . . . 7 . 3 . . 5 . 3 Traps | -11 -10 -10 -10 -9 -8 -7 -7 -7 -6 -6 -6 -6 ------- Run | Yrd Mat Min Exi Min Mat Fac Low Low Fac Low Low Zio Traps Triggered 3 | . 2 . . . 1 . . . . . . . Indirectly . | . . . . . . . . . . . . . Trap Hack Attempts . | . . . . . . . . . . . . . Triggered . | . . . . . . . . . . . . . Disarmed . | . . . . . . . . . . . . . Reprogrammed . | . . . . . . . . . . . . . Reused . | . . . . . . . . . . . . . Traps Extracted . | . . . . . . . . . . . . . Installed . | . . . . . . . . . . . . . Triggered 4 | . . . . 1 . . . . . 3 . . Machines | -11 -10 -10 -10 -9 -8 -7 -7 -7 -6 -6 -6 -6 ---------- Run | Yrd Mat Min Exi Min Mat Fac Low Low Fac Low Low Zio Machines Disabled 3 | . 2 . . . . . . . . . . 1 Max in Single Turn 1 | . 1 . . . . . . . . . . 1 Machines Repaired . | . . . . . . . . . . . . . Machines Dismantled . | . . . . . . . . . . . . . Machines Sabotaged . | . . . . . . . . . . . . . Overloaded Fab Kills . | . . . . . . . . . . . . . Hacking | -11 -10 -10 -10 -9 -8 -7 -7 -7 -6 -6 -6 -6 --------- Run | Yrd Mat Min Exi Min Mat Fac Low Low Fac Low Low Zio Machines Accessed 21 | . 7 . 1 . 6 1 . . 2 2 2 . Terminals 12 | . 5 . . . 4 1 . . 1 1 . . Fabricators . | . . . . . . . . . . . . . Repair Stations 2 | . 1 . . . 1 . . . . . . . Recycling Units 3 | . 1 . . . 1 . . . 1 . . . Scanalyzers . | . . . . . . . . . . . . . Garrison Access . | . . . . . . . . . . . . . Total Hacks 53 | . 16 . 1 . 21 5 . . 4 2 4 . Successful 23 | . 5 . 1 . 8 2 . . 1 2 4 . Failed 30 | . 11 . . . 13 3 . . 3 . . . Catastrophic 7 | . 3 . . . 2 1 . . 1 . . . Database Lockouts . | . . . . . . . . . . . . . Manual 25 | . 12 . 1 . 7 4 . . . . 1 . Terminals 34 | . 13 . . . 13 5 . . 2 1 . . Fabricators . | . . . . . . . . . . . . . Repair Stations 5 | . 1 . . . 4 . . . . . . . Recycling Units 8 | . 2 . . . 4 . . . 2 . . . Scanalyzers . | . . . . . . . . . . . . . Garrison Access . | . . . . . . . . . . . . . Terminal Hacks 15 | . 3 . 1 . 2 2 . . 1 2 4 . Record 5 | . . . 1 . . . . . . 1 3 . Robot Analysis 2 | . 2 . . . . . . . . . . . Open Door 2 | . . . . . . . . . . 1 1 . Branch Access Points 3 | . 1 . . . 1 . . . 1 . . . Terminal Index 1 | . . . . . . 1 . . . . . . Unreport Threat 1 | . . . . . 1 . . . . . . . Zone Layout 1 | . . . . . . 1 . . . . . . Fabricator Hacks . | . . . . . . . . . . . . . Repair Station Hacks 3 | . . . . . 3 . . . . . . . Scan Component 2 | . . . . . 2 . . . . . . . Repair 1 | . . . . . 1 . . . . . . . Recycling Unit Hacks 4 | . 2 . . . 2 . . . . . . . Report Inventory 3 | . 2 . . . 1 . . . . . . . Retrieve Components 1 | . . . . . 1 . . . . . . . Scanalyzer . | . . . . . . . . . . . . . Garrison Access Hacks . | . . . . . . . . . . . . . Unauthorized Hacks 1 | . . . . . 1 . . . . . . . Terminals 1 | . . . . . 1 . . . . . . . Assimilate 1 | . . . . . 1 . . . . . . . Fabricators . | . . . . . . . . . . . . . Repair Stations . | . . . . . . . . . . . . . Recycling Units . | . . . . . . . . . . . . . Scanalyzers . | . . . . . . . . . . . . . Garrison Access . | . . . . . . . . . . . . . Data Cores Recovered . | . . . . . . . . . . . . . Used . | . . . . . . . . . . . . . Hacking Detections 16 | . 7 . . . 6 1 . . 2 . . . Full Trace Events 7 | . 3 . . . 3 1 . . . . . . Feedback Events . | . . . . . . . . . . . . . Feedback Blocked . | . . . . . . . . . . . . . Robot Schematics Acquired 3 | . . . . . . . . . . . . 3 Robots Built . | . . . . . . . . . . . . . Authchips . | . . . . . . . . . . . . . Time . | . . . . . . . . . . . . . Total Robot Build Rating . | . . . . . . . . . . . . . Part Schematics Acquired 14 | . . . . . . . . . . . . 14 Parts Built . | . . . . . . . . . . . . . Authchips . | . . . . . . . . . . . . . Time . | . . . . . . . . . . . . . Total Part Build Rating . | . . . . . . . . . . . . . Parts Repaired 1 | . . . . . 1 . . . . . . . Time 38 | . . . . . 38 . . . . . . . Parts Recycled . | . . . . . . . . . . . . . Recycled Matter . | . . . . . . . . . . . . . Retrieved Matter . | . . . . . . . . . . . . . Retrieved Components 3 | . . . . . 3 . . . . . . . Parts Scanalyzed . | . . . . . . . . . . . . . Part Schematics Acquired . | . . . . . . . . . . . . . Parts Damaged . | . . . . . . . . . . . . . Bothacking | -11 -10 -10 -10 -9 -8 -7 -7 -7 -6 -6 -6 -6 ------------ Run | Yrd Mat Min Exi Min Mat Fac Low Low Fac Low Low Zio Used RIF Installer . | . . . . . . . . . . . . . Robots Hacked . | . . . . . . . . . . . . . Non-combat . | . . . . . . . . . . . . . Combat . | . . . . . . . . . . . . . Robot Hacks Applied . | . . . . . . . . . . . . . Relay Couplers Released . | . . . . . . . . . . . . . Fabnet Peak Effective % . | . . . . . . . . . . . . . Robots Rewired . | . . . . . . . . . . . . . Allies Hacked . | . . . . . . . . . . . . . Hacks Repelled . | . . . . . . . . . . . . . Allies | -11 -10 -10 -10 -9 -8 -7 -7 -7 -6 -6 -6 -6 -------- Run | Yrd Mat Min Exi Min Mat Fac Low Low Fac Low Low Zio Total Allies 9 | . . . . . 1 . . . . 1 . 7 Largest Group 7 | . . . . . 1 . . . . . . 7 Highest-Rated Group 177 | . . . . . 10 . . . . . . 177 Highest-Rated Ally 31 | . . . . . 10 . . . . . . 31 Total Orders 1 | . . . . . 1 . . . . . . . FOLLOW 1 | . . . . . 1 . . . . . . . Ally Attacks . | . . . . . . . . . . . . . Total Damage . | . . . . . . . . . . . . . Kills . | . . . . . . . . . . . . . Allies Corrupted . | . . . . . . . . . . . . . Allies Melted . | . . . . . . . . . . . . . Intel | -11 -10 -10 -10 -9 -8 -7 -7 -7 -6 -6 -6 -6 ------- Run | Yrd Mat Min Exi Min Mat Fac Low Low Fac Low Low Zio Robot Analysis Total 2 | . 2 . . . . . . . . . . . Derelict Logs Recovered 10 | . . 1 . 1 . . 1 1 . 2 3 1 Drone Launches 1 | . . . . . . . . . . . . 1 Drone Recoveries 1 | . . . . . . . . . . . . 1 Exploration | -11 -10 -10 -10 -9 -8 -7 -7 -7 -6 -6 -6 -6 ------------- Run | Yrd Mat Min Exi Min Mat Fac Low Low Fac Low Low Zio Turns Passed 5715 | 47 1463 192 270 427 839 45 141 33 110 453 305 1390 Spaces Moved 6674 | 42 1154 117 228 266 967 103 394 122 203 1406 675 997 Core 22 | 2 . . . 4 . . . . . . . 16 Treads . | . . . . . . . . . . . . . Legs 1 | . . . . . . . . . . . . 1 Wheels 712 | 40 672 . . . . . . . . . . . Hover 962 | . 482 117 228 135 . . . . . . . . Flight 4977 | . . . . 127 967 103 394 122 203 1406 675 980 Fastest Speed 25 | 50 56 116 116 116 29 27 25 25 25 25 28 34 Average Speed 61 | 78 81 116 116 119 31 27 26 25 26 27 37 123 Slowest Speed 300 | 80 116 116 116 300 117 27 28 25 27 28 114 194 Overloaded Moves . | . . . . . . . . . . . . . Propulsion Burnouts . | . . . . . . . . . . . . . Robots Hopped 8 | . . . . . 1 . . . . . . 7 Cave-ins Triggered . | . . . . . . . . . . . . . Exploration Rate (%) 49 | 4 90 22 60 57 62 4 62 18 7 99 63 90 Regions Visited 12 Branch Regions 8 Pre-discovered Areas 1 | . . . 1 . . . . . . . . . Known Exits Taken 9 | . 1 . . 1 1 1 1 1 1 1 1 . Unknown Exits Taken 3 | 1 . 1 1 . . . . . . . . . Scrap Searched 16 | . . 1 . 1 . . 2 1 . 4 3 4 Spaces Dug 63 | . . . . 12 39 . . . 7 1 . 4 Terrain Destroyed 240 | . 8 . . 38 48 . 14 . 7 81 40 4 Melee 39 | . . . . . 27 . . . 7 1 . 4 Projectile 10 | . . . . 10 . . . . . . . . AOE 191 | . 8 . . 28 21 . 14 . . 80 40 . Terrain Rammed . | . . . . . . . . . . . . . Walls Destroyed . | . . . . . . . . . . . . . Machines Disabled . | . . . . . . . . . . . . . Actions | -11 -10 -10 -10 -9 -8 -7 -7 -7 -6 -6 -6 -6 --------- Run | Yrd Mat Min Exi Min Mat Fac Low Low Fac Low Low Zio Total 7895 | 55 1489 171 235 330 1425 120 413 124 244 1459 711 1119 Wait 695 | . 163 51 . 7 356 4 1 1 30 13 . 69 Move 6649 | 41 1153 116 227 265 964 102 393 121 202 1405 674 986 Hop 5 | . . . . . 1 . . . . . . 4 Pick Up 85 | 8 26 . 3 11 12 5 2 1 1 8 4 4 Fast Attach 19 | . 2 . . 3 5 . . . . 1 5 3 Attach 54 | 6 7 . 1 9 13 4 1 . 2 1 3 7 Detach 12 | . 1 . . . 5 . . . . 1 2 3 Swap 44 | . 9 3 . 1 10 1 6 . 2 7 4 1 Drop 69 | . 18 . 4 5 14 4 2 1 . 7 8 6 Fire 172 | . 110 . . 29 2 . 8 . . 7 11 5 Melee 87 | . . . . . 43 . . . 7 9 . 28 Ram 1 | . . 1 . . . . . . . . . . Kick 3 | . . . . . . . . . . . . 3 Crush . | . . . . . . . . . . . . . Escape Stasis . | . . . . . . . . . . . . . Rewire . | . . . . . . . . . . . . . Trap . | . . . . . . . . . . . . . Miscellaneous . | . . . . . . . . . . . . . Route ------- -11/Scrapyard -10/Materials (discovered 5 exits: [*Mat x3] / *Min / [*Sub]) -10/Mines (discovered 2 exits: [*Mat] / *Exi) -10/Exiles -9/Mines -8/Materials -7/Factory -7/Lower Caves -7/Lower Caves -6/Factory (discovered 4 exits: *Low x2 / Ext x2) -6/Lower Caves -6/Lower Caves (discovered 2 exits: *Fac / *Zio) -6/Zion (discovered 2 exits: Dee / *Pro) History --------- Turn | Location | Event 19 | -11/Scrapyard | Discovered new exit (range 15) 48 | -11/Scrapyard | Entered Materials 64 | -10/Materials | Discovered new exit (range 15) 315 | -10/Materials | Build established: Mutant 515 | -10/Materials | Discovered new exit (range 5) 765 | -10/Materials | Identified exit to Mines 906 | -10/Materials | Discovered new exit (range 5) 1167 | -10/Materials | Discovered new exit (range 10) 1170 | -10/Materials | Discovered new exit (range 6) 1211 | -10/Materials | Build established: Scavenger-Mutant 1511 | -10/Materials | Entered Mines 1512 | -10/Mines | Assembled infested the area 1539 | -10/Mines | A weapon hastily lodged in a ceiling crevice suddenly fell to the ground 1657 | -10/Mines | Learned Materials terminal intel 1666 | -10/Mines | Discovered new exit (range 5) 1694 | -10/Mines | Deemed a non-threat by the Exiles lab entrance 1694 | -10/Mines | Discovered new exit (range 5) 1702 | -10/Mines | System corruption reached 10% 1703 | -10/Mines | Entered Exiles 1731 | -10/Exiles | Met 8R-AWN 1751 | -10/Exiles | Met EX-HEX 1786 | -10/Exiles | Met EX-BIN 1800 | -10/Exiles | Aligned with FarCom system 1801 | -10/Exiles | Given EX-Vault access code 1828 | -10/Exiles | Opened EX-Vault 1838 | -10/Exiles | Found Prototype Energy Gun 1840 | -10/Exiles | Identified AWS/Thermal 1868 | -10/Exiles | Warned to stay clear of 0b10 Research branches 1880 | -10/Exiles | Build established: Mutant 1902 | -10/Exiles | Met EX-DEC 1907 | -10/Exiles | Learned location of Zion (-6) 1958 | -10/Exiles | Discovered new exit (range 14) 1973 | -10/Exiles | Left Exiles lab with AWS/Thermal 1973 | -10/Exiles | Entered Mines 1984 | -9/Mines | Core integrity fell below 50% 2089 | -9/Mines | Lost 3 parts (2n1w) 2214 | -9/Mines | Core integrity fell below 20% 2257 | -9/Mines | Lost 5 parts (1p2n2w) 2298 | -9/Mines | Identified exit to Materials 2400 | -9/Mines | Entered Materials 2400 | -8/Materials | Evolved 4 slots: Propulsion x2, Utility x2 2401 | -8/Materials | Loaded intel: 12 terminal locations 2540 | -8/Materials | Repaired Minigun 2920 | -8/Materials | Build established: Scavenger-Scout 3236 | -8/Materials | Discovered new exit (range 11) 3239 | -8/Materials | Identified exit to Factory 3239 | -8/Materials | Entered Factory 3239 | -7/Factory | Evolved 2 slots: Power x1, Propulsion x1 3278 | -7/Factory | Discovered new exit (range 5) 3283 | -7/Factory | Identified exit to Lower Caves 3284 | -7/Factory | Entered Lower Caves 3285 | -7/Lower Caves | Encountered a Warlord checkpoint 3379 | -7/Lower Caves | Identified exit to Lower Caves 3396 | -7/Lower Caves | Attracted the attention of an 0b10 checkpoint 3425 | -7/Lower Caves | Entered another Lower Caves area 3454 | -7/Lower Caves | Learned Factory trap positions 3457 | -7/Lower Caves | Discovered new exit (range 5) 3458 | -7/Lower Caves | Identified exit to Factory 3458 | -7/Lower Caves | Entered Factory 3458 | -6/Factory | Evolved 2 slots: Propulsion x1, Utility x1 3459 | -6/Factory | Loaded intel: 105 trap records 3471 | -6/Factory | Spotted B-75 Beast 3558 | -6/Factory | Identified exit to Lower Caves 3558 | -6/Factory | Identified exit to Extension 3568 | -6/Factory | Entered Lower Caves 3626 | -6/Lower Caves | Ambushed by wild Derelicts 3782 | -6/Lower Caves | Identified exit to Lower Caves 3792 | -6/Lower Caves | Attacked by a delusional Derelict stockpiling Unaware 3911 | -6/Lower Caves | Encountered a Warlord checkpoint 4021 | -6/Lower Caves | Entered another Lower Caves area 4036 | -6/Lower Caves | Learned Factory garrison access intel 4040 | -6/Lower Caves | Learned Armory trap positions 4040 | -6/Lower Caves | Learned Armory garrison access intel 4060 | -6/Lower Caves | Learned location of 2 exits from Factory 4068 | -6/Lower Caves | Discovered new exit (range 8) 4073 | -6/Lower Caves | Identified exit to Factory 4164 | -6/Lower Caves | Lost 3 parts (1p2n) 4178 | -6/Lower Caves | Found Prototype Device 4226 | -6/Lower Caves | Learned location of 1 exit from Factory 4230 | -6/Lower Caves | Discovered new exit (range 20) 4237 | -6/Lower Caves | Identified exit to Zion 4326 | -6/Lower Caves | Entered Zion 4450 | -6/Zion | Discovered new exit (range 15) 4521 | -6/Zion | Identified exit to Proximity Caves 4695 | -6/Zion | Build established: Scavenger-Mutant 4987 | -6/Zion | Found Prototype Device 4987 | -6/Zion | Identified Bomb Factory No. 2 5197 | -6/Zion | Gained Derelict followers 5263 | -6/Zion | Identified exit to Deep Caves 5296 | -6/Zion | Given the Hacking Drone Bay 5296 | -6/Zion | Found Prototype Device 5298 | -6/Zion | Identified Hacking Drone Bay 5578 | -6/Zion | Rebuked by Imprinter 5596 | -6/Zion | Attempted to imprint without authorization 5596 | -6/Zion | Attacked by Zionites 5632 | -6/Zion | Lost 3 parts (1p1n1u) 5690 | -6/Zion | Core integrity fell below 50% 5702 | -6/Zion | Core integrity fell below 20% 5716 | -6/Zion | Destroyed by WF-BCU(l) with Ripper Last Messages --------------- System... OK-JCN(z) bursts out of the Twisted Machinery. 05676_ Destroyed Cesium-ion Thruster. 05676_ 7O-XJ5(s) system corrupted by crushing effect. 05677_ 7O-XJ5(s) system terminally corrupted. 05692_ Mak. Hammer destroyed. 05692_ Adv. Visual Processing Unit destroyed. 05692_ System corrupted by crushing effect (+2). 05692_ System corrupted by crushing effect (+3). 05692_ Knocked back. 05695_ System corrupted: Heat flow error (+205). 05697_ 5O-N92(z) destroyed. 05699_ Missile Launcher destroyed. 05699_ Destroyed Missile Launcher. 05701_ Minigun severed. 05702_ Acquired Minigun. 05706_ Minigun destroyed. 05709_ Acquired Mak. Leg. 05713_ Kicked WF-BCU(l). Map ----- +----------------------------------------------------+ | ????????????????????????????????????????? | | ????????????????????????????????????????? | | ????????????????????????????????????????? | | ????????????????????????????????????????? | | ????????????????????????????????????????? | | ????????????????????????????????????????? | | ????????????????????????????????????????? | | ????????????????????????????????????????? | | ????????????????????????????????????????? | | ????????????????????????????????????????? | | ????????????????????????????????????????? | | ????????????????????????????????????????? | | ????????????????????????????????????????? | | ????????????????????????????????????????? | | ????????????????????????????????????????? | | ?????????????????????????????????????? "? | | ???????????????????????????????#####?" | | ?????????????????????????????######""" | | ???????????????????????????#####""#"" | | ??????????????????#######?###""""""" | | ??????????????????#""" ##"##""" | | ??????????????#######"# """#""" | | ??????????????# " X""#" | | ??????????????#X X %# ""#" | | ??????????????####s#"## """" | | ???????????????"@l" " | | ???????????????" " " """" | | ???????????????####### """" """"#" | | ?????????????>??"""""""""" ##" """#"" | | ?????????????????##"""##"## """" """"" | | ??????????????????####?###"###"" """"" | | ??????????????????????#### "#" """" | | ??????????????????????### """ | | ??????????????????????## ""# """ | | ??????????????????????### #### " | | ??????????????????????### #"" """ | | ???????????????????????### #""" """ | | ???????????????????????#####"" """ | | ????????????????????????###""" "" | | ?????????????????????????###"" " | | ?????????????????????????###"" " | | ?????????????????????????###""" | | ?????????????????????????##"#""" | | ?????????????????????????####"#" | | ?????????????????????????######"" | | ???????????????????????????####"""" | | ??????????????????????####?###"""""" "" | | ??????????????????#???#######"" """""""" | | ?????????????????##!?##" #"" """"""#" | | ?????????????????#!!!#"# #" " "#"" | +----------------------------------------------------+ Best States ------------- Heat Dissipation 37 Energy Generation 23 Energy Capacity 220 Matter Stores 300 Matter Capacity 300 Sight Range 20 Robot Scan Range 14 Terrain Scan Density 10 ECM Strength 2 Evasion (%) 65 Armor Integrity Analysis 30 Offensive Hacking 10 Defensive Hacking 11 Item Schematics ----------------- Mak. Transmission Jammer | -6/Zion | Archive Arm. Medium Treads | -6/Zion | Archive Nuclear Pulse Thruster | -6/Zion | Archive Lrn. Proton Cannon | -6/Zion | Archive Imp. Dynamic Insulation System | -6/Zion | Archive Fission Core | -6/Zion | Archive Centrium Wheel | -6/Zion | Archive Fusion Compressor | -6/Zion | Archive Imp. Shock Absorption System | -6/Zion | Archive Adv. Heat Sink | -6/Zion | Archive Hvy. Phase Cannon | -6/Zion | Archive Adv. Signal Interpreter | -6/Zion | Archive Stasis Canceller | -6/Zion | Archive Impulse Thruster | -6/Zion | Archive Robot Schematics ------------------ P-60 Hacker | -6/Zion | Archive R-06 Scavenger | -6/Zion | Archive K-01 Serf | -6/Zion | Archive Fabricated ------------ Nothing Alien Tech Used ----------------- None Achievements -------------- None Challenges ------------ None Game ------ Seed DecoyDiametricNanoactuators Manual? 0 Play Time 02:04:18 Cumulative 31.8 hours Start 2024.06.22 @ 14:16:47 End 2024.06.22 @ 16:33:01 Sessions 1 Manual Loads 0 Difficulty Rogue Special Mode None Game No. 22 Rogue 21 Adventurer 1 Explorer 0 Win Type - Total 0 Types 0/0/0/0/0/0/0/0/0 Lore% 20 Gallery% 20 Achievement% 23 Wizard Run 0 Options --------- Layout 1 ASCII 0 Keyboard 0 Movement Mouse Keybinds 0 Fullscreen 1 Font 20/SmallcapsGlow Map View 50x35 Zoom Use 0% Tactical HUD 1 Map Filters NONE Filters NONE Steam 1 RUN: af901d3a-eb35-42e1-a270-64b9ffd90a92